bitfinex-derivatives/quotes_SOLF0:USTF0_20241231
["timestamp","ask_amount","ask_price","bid_price","bid_amount"]
[1735620291550,10.68233529,189.25,189.21,2.647]
[1735620293751,7.70233529,189.23,189.13,2.98]
[1735620293947,2.647,189.22,189.15,7.70233529]
[1735620295352,2.6472,189.21,189.17,2.6477]
[1735620296148,7.70233529,189.23,189.15,7.70233529]
[1735620296149,2.647,189.22,189.18,2.6476]
[1735620298858,2.6473,189.21,189.16,2.6478]
[1735620299158,10.34963529,189.21,189.16,2.6478]
[1735620299455,10.34963529,189.21,189.17,2.6477]
[1735620300354,2.98,189.26,189.17,7.70233529]
[1735620300552,7.70233529,189.26,189.19,7.70233529]
[1735620301052,10.34883529,189.26,189.19,7.70233529]
[1735620301245,7.70233529,189.26,189.19,7.70233529]
[1735620301855,7.70233529,189.26,189.22,2.6469]
[1735620302251,0.19521,189.29,189.21,7.70233529]
[1735620302555,0.19521,189.29,189.23,7.70233529]
[1735620302953,7.89754529,189.29,189.23,7.70233529]
[1735620303254,7.89754529,189.29,189.21,7.70233529]
[1735620303557,0.19521,189.29,189.23,7.70233529]
[1735620303854,0.19521,189.29,189.25,7.70233529]
[1735620304550,0.19521,189.29,189.23,7.70233529]
[1735620304748,7.70233529,189.28,189.21,7.70233529]
[1735620305453,2.6463,189.27,189.22,2.6469]
[1735620305654,7.70233529,189.26,189.21,7.70233529]
[1735620306658,7.70233529,189.26,189.19,7.70233529]
[1735620307156,2.6467,189.24,189.2,2.6471]
[1735620307357,2.6467,189.24,189.19,7.70233529]
[1735620308863,2.647,189.23,189.19,7.70233529]
[1735620310555,2.647,189.22,189.18,2.6474]
[1735620310959,10.34913529,189.24,189.19,2.6473]
[1735620311259,7.70233529,189.24,189.17,7.70233529]
[1735620311956,10.34913529,189.24,189.19,2.6474]
[1735620312264,7.70233529,189.26,189.19,7.70233529]
[1735620313060,10.34883529,189.26,189.21,2.647]
[1735620313651,10.34883529,189.26,189.21,2.6471]
[1735620313963,7.70233529,189.26,189.19,7.70233529]
[1735620314655,2.6465,189.26,189.19,7.70233529]
[1735620314857,10.34883529,189.26,189.21,2.647]
[1735620316358,2.6466,189.25,189.19,10.34963529]
[1735620317662,2.6466,189.25,189.19,7.70233529]
[1735620317964,2.6466,189.25,189.2,2.6472]
[1735620319466,10.34913529,189.24,189.19,2.6474]
[1735620320072,7.70233529,189.24,189.15,7.70233529]
[1735620320258,2.647,189.22,189.18,2.6476]
[1735620320460,2.647,189.22,189.12,6.0636]
[1735620320659,2.647,189.22,189.15,7.70233529]
[1735620320962,10.34933529,189.22,189.17,2.6476]
[1735620321165,13.32933529,189.22,189.17,2.6476]
[1735620322169,10.68233529,189.22,189.15,7.70233529]
[1735620322379,2.6473,189.2,189.16,2.6478]
[1735620323671,10.34963529,189.2,189.16,2.6478]
[1735620324266,7.70233529,189.2,189.14,7.70233529]
[1735620324471,2.6475,189.19,189.14,2.648]
[1735620325267,2.6475,189.19,189.14,10.35033529]
[1735620325664,10.68233529,189.22,189.17,2.6476]
[1735620326373,2.6471,189.21,189.16,2.6478]
[1735620328069,2.6471,189.21,189.14,7.70233529]
[1735620328365,13.32943529,189.22,189.17,2.6477]
[1735620329970,2.6471,189.21,189.17,2.6477]
[1735620335366,7.70233529,189.18,189.08,7.70233529]
[1735620335566,7.70233529,189.15,189.08,7.70233529]
[1735620336066,10.35073529,189.13,189.07,2.6491]
[1735620336266,7.70233529,189.13,189.06,7.70233529]
[1735620337567,2.6486,189.11,189.06,10.35153529]
[1735620338671,2.6486,189.11,189.06,2.6492]
[1735620339274,2.6484,189.13,189.09,2.6488]
[1735620339473,2.6484,189.13,189.04,1.4987]
[1735620339474,11.99402156,189.2,189.04,1.4987]
[1735620339674,2.98,189.19,189.04,1.4987]
[1735620339876,2.98,189.19,189.13,2.6482]
[1735620340472,2.98,189.19,189.14,2.6481]
[1735620340672,2.98,189.19,189.08,2.98]
[1735620341375,2.98,189.19,189.14,2.648]
[1735620342475,5.6275,189.19,189.14,2.648]
[1735620342877,2.98,189.19,189.12,2.6483]
[1735620343175,2.98,189.19,189.08,2.98]
[1735620343479,2.6476,189.18,189.11,2.6485]
[1735620343773,2.6476,189.18,189.08,2.98]
[1735620345276,2.6476,189.18,189.13,2.6482]
[1735620346175,2.98,189.19,189.08,2.98]
[1735620346675,2.98,189.19,189.04,1.4987]
[1735620346676,2.98,189.19,189.06,2.98]
[1735620347078,2.98,189.19,189.09,2.6487]
[1735620347782,2.6482,189.14,189.09,2.6487]
[1735620348676,2.98,189.19,189.08,2.6489]
[1735620348677,2.6483,189.13,189.08,2.6489]
[1735620351175,5.6281,189.14,189.04,4.4787]
[1735620352074,2.6483,189.13,189.04,4.4787]
[1735620352382,2.98,189.14,189.04,4.4787]
[1735620352574,2.98,189.14,189.08,2.6488]
[1735620353174,2.98,189.14,189.06,2.6492]
[1735620353674,2.6485,189.12,189.06,2.6492]
[1735620353875,2.98,189.14,189.06,2.6492]
[1735620354776,2.6485,189.12,189.06,2.6492]
[1735620354981,2.98,189.14,189.06,2.6492]
[1735620355371,2.6487,189.1,189.06,2.6492]
[1735620356083,2.98,189.11,188.99,2.98]
[1735620356581,2.98,189.11,189.08,2.6489]
[1735620358077,2.6481,189.14,189.1,2.6486]
[1735620358282,2.98,189.17,189.04,2.98]
[1735620358482,2.98,189.17,189.05,3.014]
[1735620359178,2.6479,189.16,189.05,3.014]
[1735620359885,2.648,189.15,189.11,2.6484]
[1735620361089,2.98,189.17,189.05,3.014]
[1735620361680,2.6484,189.12,189.08,2.6489]
[1735620361881,2.98,189.17,189.05,3.014]
[1735620362084,2.98,189.17,189.04,2.98]
[1735620362279,2.6486,189.11,189.07,2.6491]
[1735620362477,2.98,189.12,189.07,2.6491]
[1735620362683,2.98,189.12,188.99,3.1168]
[1735620362884,2.649,189.08,189.03,2.6495]
[1735620363589,2.649,189.08,189.04,2.6495]
[1735620364495,5.6292,189.07,189.02,2.6498]
[1735620364687,2.98,189.07,188.94,7.33228772]
[1735620364899,2.6494,189.05,188.99,2.6501]
[1735620365090,2.6494,189.05,188.95,2.98]
[1735620365286,2.6494,189.05,188.94,3.1944]
[1735620365493,2.6494,189.05,188.94,6.1744]
[1735620366296,2.6497,189.03,188.94,3.1944]
[1735620366490,2.98,189.02,188.94,3.1944]
[1735620366891,2.65,189.01,188.92,2.98]
[1735620367191,2.98,189.02,188.91,6.79102555]
[1735620367391,2.6499,189.01,188.95,2.6507]
[1735620367597,2.98,189.02,188.91,6.79102555]
[1735620368498,2.98,189.02,188.98,2.6503]
[1735620368700,4.6427,189.11,188.91,6.79102555]
[1735620368901,2.98,189.1,188.91,6.79102555]
[1735620369396,2.6494,189.06,188.96,2.6505]
[1735620369600,2.98,189.05,188.91,6.79102555]
[1735620370001,2.98,189.05,189.01,2.6499]
[1735620370499,5.6295,189.05,189.0,2.65]
[1735620371300,2.98,189.04,189.0,2.65]
[1735620371500,5.6296,189.04,188.98,2.6502]
[1735620371704,2.98,189.04,188.98,2.6502]
[1735620372001,3.1313,189.03,188.98,2.6502]
[1735620372197,4.6322,189.03,188.98,2.6502]
[1735620373204,2.6498,189.02,188.98,2.6502]
[1735620373399,2.6498,189.02,188.96,2.6505]
[1735620373900,2.6498,189.02,188.91,9.77102555]
[1735620374103,2.6498,189.02,188.97,2.6505]
[1735620375504,4.6322,189.03,188.97,2.6505]
[1735620375702,2.65,189.01,188.97,2.6505]
[1735620377402,2.98,189.06,188.91,6.79102555]
[1735620378007,2.98,189.06,189.03,2.6497]
[1735620378401,2.6494,189.05,188.97,2.6504]
[1735620378603,2.6494,189.05,188.94,2.98]
[1735620379409,2.6494,189.05,189.0,2.65]
[1735620380605,2.98,189.06,188.94,2.98]
[1735620380805,2.98,189.06,188.99,2.6502]
[1735620381907,2.6495,189.04,188.99,2.6502]
[1735620382508,2.6498,189.03,188.98,2.6504]
[1735620386904,2.65,189.01,188.96,2.6505]
[1735620387207,2.98,189.01,188.96,2.6505]
[1735620387909,2.98,189.01,188.91,3.28002332]
[1735620388105,2.6502,188.99,188.94,2.6508]
[1735620389897,2.98,189.01,188.87,3.2241]
[1735620390097,2.98,189.01,188.88,3.0]
[1735620391505,2.6504,188.98,188.94,2.6509]
[1735620392912,2.98,189.01,188.88,3.0]
[1735620393209,2.6502,188.99,188.95,2.6508]
[1735620393812,2.98,189.01,188.88,3.0]
[1735620394013,2.6504,188.98,188.94,2.6508]
[1735620394812,2.98,189.01,188.94,2.6508]
[1735620395009,2.6503,188.99,188.95,2.6508]
[1735620395204,2.98,189.01,188.87,3.2241]
[1735620396017,2.6502,188.99,188.87,3.2241]
[1735620397012,2.6502,188.99,188.95,2.6508]
[1735620398409,2.6502,188.99,188.9,2.6514]
[1735620398713,2.6502,188.99,188.87,3.2241]
[1735620399512,2.6502,188.99,188.95,2.6507]
[1735620400613,2.6501,189.0,188.97,2.6505]
[1735620400812,3.0,188.99,188.87,3.2241]
[1735620401819,3.0,188.99,188.96,2.6505]
[1735620402017,3.0,188.99,188.87,3.2241]
[1735620402218,3.0,189.0,188.87,3.2241]
[1735620402409,29.27128625,189.06,188.87,3.2241]
[1735620402710,2.6496,189.04,188.87,3.2241]
[1735620402915,2.6496,189.04,188.99,2.6501]
[1735620403511,3.0,189.03,188.99,2.6501]
[1735620403711,5.6497,189.03,188.99,2.6501]
[1735620404216,2.6503,188.99,188.91,3.0]
[1735620404416,3.0,188.98,188.87,6.2241]
[1735620404616,3.0,188.98,188.94,2.6508]
[1735620406312,5.6504,188.98,188.94,2.6508]
[1735620406907,3.0,188.98,188.96,2.6506]
[1735620409819,3.0,188.98,188.93,2.651]
[1735620411514,2.6505,188.97,188.93,2.651]
[1735620412115,2.651,188.94,188.9,2.6515]
[1735620412513,3.0,188.93,188.81,3.1356]
[1735620412721,5.6511,188.93,188.88,2.6516]
[1735620413023,5.6511,188.93,188.81,3.1356]
[1735620413223,5.6511,188.93,188.82,3.0]
[1735620413418,5.6511,188.93,188.83,3.0]
[1735620414024,3.0,188.93,188.83,3.0]
[1735620414223,3.0,188.93,188.81,6.1356]
[1735620414619,3.0,188.93,188.79,29.3291509]
[1735620414620,2.6518,188.89,188.79,29.3291509]
[1735620414824,3.2033,188.92,188.78,7.33228772]
[1735620415123,3.2033,188.92,188.82,2.6526]
[1735620415319,2.6515,188.9,188.78,10.33228772]
[1735620415824,3.2033,188.92,188.78,7.33228772]
[1735620416220,3.2033,188.92,188.77,4.5124]
[1735620417319,2.6518,188.88,188.83,2.6523]
[1735620417819,2.6518,188.88,188.77,4.5124]
[1735620418021,5.6518,188.88,188.77,4.5124]
[1735620420224,3.0,188.88,188.77,4.5124]
[1735620420425,3.02,188.92,188.77,4.5124]
[1735620420831,3.02,188.92,188.81,2.6527]
[1735620421024,3.02,188.92,188.77,4.5124]
[1735620422029,3.02,188.92,188.88,2.6517]
[1735620422225,2.6512,188.93,188.88,2.6517]
[1735620422426,3.02,188.91,188.88,2.6517]
[1735620425132,2.3761518,188.91,188.77,4.5124]
[1735620425832,2.6518,188.88,188.77,4.5124]
[1735620426031,2.3761518,188.91,188.77,4.5124]
[1735620426331,2.6522,188.85,188.77,1.5124]
[1735620426532,3.02,188.86,188.77,1.5124]
[1735620427227,2.6524,188.84,188.8,2.6528]
[1735620428325,3.02,188.86,188.65,14.8672366]
[1735620428531,2.98,188.85,188.69,29.3291509]
[1735620430125,2.6531,188.79,188.71,2.6541]
[1735620430431,3.02,188.78,188.66,3.02]
[1735620430932,3.02,188.78,188.74,2.6537]
[1735620431628,2.98,188.85,188.66,3.02]
[1735620431933,3.02,188.84,188.66,3.02]
[1735620432129,2.6526,188.83,188.77,2.6532]
[1735620432529,3.02,188.84,188.77,2.6532]
[1735620432835,2.98,188.85,188.77,2.6532]
[1735620433039,2.6527,188.82,188.66,3.02]
[1735620433332,3.02,188.84,188.75,2.6535]
[1735620433532,1.6155,188.83,188.75,2.6535]
[1735620433932,1.6155,188.83,188.64,1.4738]
[1735620434127,1.6155,188.83,188.65,3.02]
[1735620434635,2.6527,188.82,188.76,2.6534]
[1735620436934,2.6528,188.81,188.76,2.6534]
[1735620437933,1.6155,188.83,188.65,3.02]
[1735620438234,2.6529,188.8,188.75,2.6536]
[1735620438435,3.02,188.79,188.75,2.6536]
[1735620439339,5.673,188.79,188.64,1.4738]
[1735620439533,5.673,188.79,188.74,2.6536]
[1735620442239,3.02,188.79,188.72,2.6539]
[1735620443237,2.6534,188.77,188.72,2.6539]
[1735620443839,2.6534,188.77,188.64,1.4738]
[1735620443840,2.6536,188.76,188.7,2.6542]
[1735620444132,1.5627,188.78,188.64,1.4738]
[1735620444337,3.1739,188.78,188.64,1.4738]
[1735620445029,2.6539,188.73,188.68,2.6545]
[1735620445230,3.02,188.72,188.64,1.4738]
[1735620445640,3.02,188.72,188.68,2.6545]
[1735620446144,3.02,188.72,188.69,2.6544]
[1735620447034,3.02,188.72,188.44,699.7315818]
[1735620447240,3.02,188.72,188.56,7.7184]
[1735620447542,2.6544,188.7,188.56,7.7184]
[1735620448937,2.6544,188.7,188.65,2.655]
[1735620449139,3.02,188.72,188.56,4.6984]
[1735620449440,2.6548,188.67,188.56,4.6984]
[1735620449643,5.6748,188.67,188.61,2.6554]
[1735620450342,2.6549,188.66,188.61,2.6554]
[1735620451137,3.02,188.67,188.54,6.80317096]
[1735620451342,3.02,188.67,188.58,2.656]
[1735620451738,2.6551,188.65,188.54,6.80317096]
[1735620452544,2.6551,188.65,188.59,2.6557]
[1735620452945,2.6551,188.65,188.54,6.80317096]
[1735620453141,3.0434,188.71,188.54,6.80317096]
[1735620453339,1.5375,188.71,188.54,6.80317096]
[1735620453543,3.02,188.72,188.54,6.80317096]
[1735620453742,3.02,188.72,188.69,2.6543]
[1735620454046,3.02,188.72,188.62,3.02]
[1735620454246,3.02,188.72,188.71,2.6542]
[1735620454652,4.1833,188.75,188.71,2.6542]
[1735620454947,3.02,188.73,188.69,2.6543]
[1735620456246,3.02,188.74,188.63,4.7016]
[1735620456443,3.02,188.76,188.63,4.7016]
[1735620456641,3.02,188.77,188.63,4.7016]
[1735620456947,3.02,188.77,188.74,2.6537]
[1735620457350,3.02,188.77,188.72,2.6539]
[1735620458551,2.6535,188.76,188.7,2.6542]
[1735620458751,3.02,188.77,188.67,3.02]
[1735620459048,3.02,188.77,188.63,4.7016]
[1735620459759,2.6536,188.76,188.7,2.6543]
[1735620460052,3.02,188.77,188.7,2.6543]
[1735620460858,3.02,188.77,188.73,2.6539]
[1735620461960,5.6733,188.77,188.73,2.6539]
[1735620462661,5.6733,188.77,188.71,2.654]
[1735620462861,5.6733,188.77,188.63,4.7016]
[1735620463062,2.6537,188.75,188.63,4.7016]
[1735620463361,2.6537,188.75,188.7,2.6543]
[1735620465059,0.8060072,188.74,188.56,29.3291509]
[1735620465266,0.8060072,188.73,188.56,29.3291509]
[1735620465565,3.02,188.72,188.56,7.33228772]
[1735620465767,2.6551,188.65,188.58,2.656]
[1735620465966,3.02,188.64,188.58,2.656]
[1735620466366,3.02,188.64,188.54,1.4953]
[1735620466570,3.02,188.64,188.57,2.6561]
[1735620467265,2.6554,188.63,188.56,2.6562]
[1735620468063,3.02,188.64,188.46,7.33228772]
[1735620468265,3.02,188.64,188.48,1.4944]
[1735620468768,1.478,188.63,188.48,1.4944]
[1735620469367,2.6555,188.62,188.48,1.4944]
[1735620470168,1.478,188.63,188.48,1.4944]
[1735620470465,2.6556,188.61,188.56,2.6562]
[1735620472672,1.478,188.63,188.48,4.5144]
[1735620472879,3.0566,188.68,188.48,4.5144]
[1735620473061,3.02,188.67,188.48,4.5144]
[1735620473266,3.0566,188.68,188.48,4.5144]
[1735620473464,3.02,188.67,188.48,4.5144]
[1735620473661,2.6549,188.66,188.6,2.6556]
[1735620474066,2.6549,188.66,188.53,3.02]
[1735620474267,3.02,188.67,188.54,1.5419]
[1735620474467,3.02,188.67,188.55,1.4737]
[1735620474670,3.77526044,188.69,188.64,2.6551]
[1735620474871,3.02,188.68,188.64,2.6551]
[1735620475671,3.02,188.68,188.56,1.4791]
[1735620477171,2.6549,188.66,188.56,1.4791]
[1735620477670,3.02,188.68,188.56,1.4791]
[1735620478470,3.02,188.68,188.54,4.5619]
[1735620478471,3.02,188.68,188.53,3.28641843]
[1735620478672,3.02,188.68,188.54,1.5599]
[1735620478973,2.6554,188.62,188.54,1.5599]
[1735620479172,5.6754,188.62,188.54,1.5599]
[1735620479870,2.6556,188.61,188.56,2.6562]
[1735620480377,3.02,188.62,188.54,1.5599]
[1735620483881,3.02,188.62,188.58,2.6559]
[1735620484276,3.02,188.62,188.54,1.5599]
[1735620484482,2.655,188.65,188.6,2.6556]
[1735620484687,3.14,188.64,188.6,2.6556]
[1735620485585,3.77526044,188.69,188.55,3.14]
[1735620485786,3.14,188.68,188.55,3.14]
[1735620487680,3.77526044,188.69,188.55,3.14]
[1735620487881,3.14,188.68,188.55,3.14]
[1735620489287,2.6549,188.66,188.61,2.6555]
[1735620489485,6.91526044,188.69,188.55,3.14]
[1735620490086,9.56976044,188.69,188.59,2.6558]
[1735620490286,9.56976044,188.69,188.55,3.14]
[1735620490287,6.91526044,188.69,188.55,3.14]
[1735620491688,2.6546,188.68,188.55,3.14]
[1735620492585,2.6546,188.68,188.64,2.6551]
[1735620492892,6.91526044,188.69,188.55,3.14]
[1735620493189,2.6549,188.66,188.55,3.14]
[1735620493586,2.6549,188.66,188.61,2.6555]
[1735620494583,2.6552,188.64,188.59,2.6557]
[1735620494888,5.7952,188.64,188.59,2.6557]
[1735620495091,3.14,188.64,188.59,2.6557]
[1735620495288,3.14,188.64,188.6,2.6557]
[1735620497492,5.7952,188.64,188.6,2.6557]
[1735620498189,2.6554,188.62,188.57,2.6561]
[1735620502288,2.6556,188.61,188.57,2.6561]
[1735620504897,3.14,188.64,188.54,1.5599]
[1735620504898,5.7952,188.64,188.59,2.6557]
[1735620505098,3.14,188.65,188.54,1.5599]
[1735620505396,3.14,188.67,188.55,3.14]
[1735620505593,3.77526044,188.69,188.66,2.6548]
[1735620505786,3.14,188.68,188.66,2.6548]
[1735620506294,3.14,188.68,188.64,2.655]
[1735620506798,3.14,188.68,188.55,3.14]
[1735620507099,3.14,188.68,188.65,2.655]
[1735620508000,3.77526044,188.69,188.6,3.14]
[1735620509502,3.77526044,188.69,188.57,3.14]
[1735620510502,6.42966044,188.69,188.64,2.6549]
[1735620512006,3.77526044,188.69,188.57,3.14]
[1735620512202,3.77526044,188.69,188.58,3.2411]
[1735620512600,3.77526044,188.69,188.66,2.6546]
[1735620512808,3.77526044,188.69,188.58,3.2411]
[1735620514599,3.77526044,188.69,188.68,2.6544]
[1735620515809,3.77526044,188.69,188.67,2.6544]
[1735620517703,3.77526044,188.69,188.58,3.2411]
[1735620519410,2.6544,188.68,188.64,2.6549]
[1735620519614,3.77526044,188.69,188.58,3.2411]
[1735620521200,3.77526044,188.69,188.68,2.6544]
[1735620521406,1.4959,188.71,188.61,3.18]
[1735620521607,1.4959,188.71,188.7,2.6541]
[1735620522606,4.6939,188.73,188.68,2.6542]
[1735620523307,7.3476,188.73,188.68,2.6542]
[1735620523509,7.3476,188.73,188.69,2.6542]
[1735620524010,4.6939,188.73,188.69,2.6542]
[1735620524210,1.5722,188.78,188.62,1.5351]
[1735620524715,5.8331,188.77,188.62,1.5351]
[1735620525313,3.18,188.77,188.62,1.5351]
[1735620526423,1.5984,188.79,188.62,1.5351]
[1735620527321,1.5984,188.79,188.77,2.653]
[1735620527518,3.18,188.81,188.7,3.18]
[1735620527720,0.27205,188.82,188.71,1.5633]
[1735620527920,0.27205,188.82,188.74,2.6534]
[1735620528119,0.27205,188.82,188.71,1.5633]
[1735620529014,0.27205,188.82,188.71,3.15]
[1735620529718,0.27205,188.82,188.8,2.6526]
[1735620530316,0.27205,188.82,188.81,2.6525]
[1735620535122,4.7493,188.95,188.89,2.6514]
[1735620536433,3.18,189.01,188.91,2.651]
[1735620536728,1.4816,189.0,188.91,2.651]
[1735620536918,2.6503,188.97,188.91,2.651]
[1735620537319,2.6504,188.96,188.91,2.651]
[1735620538318,1.4816,189.0,188.85,3.18]
[1735620538519,1.4816,189.0,188.82,1.5244]
[1735620538725,1.4816,189.0,188.81,1.5553]
[1735620539023,2.6514,188.9,188.84,2.652]
[1735620539627,3.1872,188.91,188.77,3.16]
[1735620539922,4.6728,188.91,188.76,3.16]
[1735620540225,2.6519,188.85,188.8,2.6525]
[1735620540427,3.16,188.87,188.76,3.16]
[1735620540829,2.652,188.85,188.79,2.6526]
[1735620541332,2.652,188.85,188.8,2.6526]
[1735620542131,5.8118,188.87,188.8,2.6526]
[1735620542331,3.16,188.87,188.75,3.16]
[1735620542534,4.6728,188.91,188.75,3.16]
[1735620542735,4.6728,188.91,188.76,1.5922]
[1735620543337,4.6728,188.91,188.85,2.6518]
[1735620543637,4.6728,188.91,188.77,1.5789]
[1735620543638,4.6728,188.91,188.8,3.16]
[1735620544234,2.6512,188.9,188.84,2.6521]
[1735620544539,4.6728,188.91,188.8,3.16]
[1735620544835,3.16,188.92,188.87,2.6515]
[1735620546131,4.621,189.04,188.8,3.16]
[1735620546329,3.96605076,189.03,188.8,3.16]
[1735620546535,3.16,189.03,188.8,3.16]
[1735620546840,0.80606195,189.02,188.8,3.16]
[1735620547036,3.16,189.03,188.8,3.16]
[1735620547947,2.6505,188.96,188.9,2.6511]
[1735620548241,3.16,188.96,188.9,2.6511]
[1735620548447,3.16,188.96,188.85,3.16]
[1735620549740,2.6506,188.95,188.85,3.16]
[1735620550046,3.16,188.96,188.85,3.16]
[1735620550246,3.0998,188.95,188.85,3.16]
[1735620551245,4.6361,188.95,188.85,3.16]
[1735620551549,2.6509,188.92,188.88,2.6515]
[1735620552651,2.6507,188.94,188.89,2.6514]
[1735620553451,2.6507,188.94,188.85,3.16]
[1735620553651,2.6507,188.94,188.9,2.6512]
[1735620554550,4.6361,188.95,188.77,1.5789]
[1735620554751,4.6361,188.95,188.78,3.16]
[1735620555453,2.6513,188.9,188.83,2.6522]
[1735620555753,3.16,188.91,188.77,1.5789]
[1735620556154,3.16,188.91,188.76,3.16]
[1735620556155,2.6519,188.85,188.76,3.16]
[1735620556554,3.16,188.86,188.79,2.6527]
[1735620556758,3.0771,188.85,188.79,2.6527]
[1735620558054,3.0771,188.85,188.74,1.6293]
[1735620558248,4.5465,188.85,188.72,3.28324852]
[1735620559659,2.6523,188.83,188.75,2.6532]
[1735620559952,2.6523,188.83,188.72,3.28324852]
[1735620560156,3.16,188.84,188.72,3.28324852]
[1735620560557,2.6525,188.82,188.76,2.6531]
[1735620560860,2.6525,188.82,188.72,3.28324852]
[1735620561254,2.6525,188.82,188.76,2.6532]
[1735620561656,2.6525,188.81,188.76,2.6532]
[1735620561862,2.6525,188.81,188.72,6.44324852]
[1735620562156,2.6525,188.81,188.75,2.6533]
[1735620562347,3.16,188.84,188.72,3.28324852]
[1735620562549,3.16,188.84,188.72,5.93684852]
[1735620562952,3.16,188.84,188.72,3.28324852]
[1735620563249,2.653,188.78,188.73,2.6536]
[1735620564355,2.6532,188.76,188.71,2.6539]
[1735620564556,3.16,188.79,188.71,2.6539]
[1735620566461,2.6532,188.76,188.71,2.6539]
[1735620569860,1.5444,188.78,188.69,2.654]
[1735620570256,1.5444,188.78,188.66,3.16]
[1735620570257,2.6536,188.73,188.68,2.6543]
[1735620570457,2.6536,188.73,188.66,3.16]
[1735620571062,2.6536,188.73,188.65,1.6035]
[1735620571273,2.6538,188.72,188.63,3.16]
[1735620572969,2.6538,188.72,188.66,2.6545]
[1735620573463,2.6538,188.72,188.63,3.16]
[1735620573664,2.6538,188.72,188.67,2.6544]
[1735620574567,3.16,188.74,188.55,3.1154]
[1735620574768,3.16,188.74,188.56,3.16]
[1735620575263,2.6542,188.69,188.56,3.16]
[1735620575968,2.6542,188.69,188.63,2.6549]
[1735620576871,2.6544,188.68,188.63,2.6549]
[1735620578366,3.16,188.69,188.56,3.16]
[1735620578573,3.16,188.73,188.56,3.16]
[1735620579163,3.16,188.73,188.67,2.6544]
[1735620579164,2.6538,188.72,188.67,2.6544]
[1735620579571,3.16,188.73,188.62,3.16]
[1735620580272,2.6542,188.7,188.65,2.6546]
[1735620582569,3.0097,188.77,188.62,3.16]
[1735620582873,3.16,188.76,188.62,3.16]
[1735620583079,3.16,188.76,188.63,1.5224]
[1735620583769,2.6535,188.75,188.63,1.5224]
[1735620584273,2.6535,188.75,188.69,2.6541]
[1735620585176,2.6535,188.75,188.63,3.1197]
[1735620585671,1.4732,188.77,188.63,4.7065]
[1735620586074,4.1263,188.77,188.67,2.6544]
[1735620586374,4.1263,188.77,188.68,3.16]
[1735620587269,1.4918,188.86,188.68,3.16]
[1735620587465,6.2501,188.85,188.68,3.16]
[1735620588574,2.6526,188.8,188.75,2.6533]
[1735620588777,3.16,188.83,188.68,3.16]
[1735620588972,2.6524,188.82,188.76,2.653]
[1735620589174,2.6524,188.82,188.73,3.16]
[1735620590477,2.6525,188.81,188.76,2.6531]
[1735620590672,2.6525,188.81,188.73,3.16]
[1735620590873,3.16,188.84,188.73,3.16]
[1735620592578,2.6524,188.82,188.77,2.653]
[1735620593476,3.16,188.84,188.8,2.6526]
[1735620594070,2.6525,188.81,188.77,2.6529]
[1735620594274,2.6525,188.81,188.74,1.622]
[1735620595479,2.6525,188.81,188.77,2.653]
[1735620598779,2.6521,188.84,188.79,2.6527]
[1735620599077,3.16,188.85,188.74,1.622]
[1735620599270,3.16,188.84,188.74,1.622]